[Event "44th Chess Olympiad Open 2022"]
[Site "Chennai"]
[Date "2022.07.31"]
[Round "3.78"]
[White "Croes, Octavio"]
[Black "Nadan, Avinesh"]
[Result "0-1"]
[WhiteElo "1794"]
[BlackElo "1540"]
[Annotator "NA RC"]
[PlyCount "84"]
[EventDate "2022.??.??"]
[TimeControl "60"]

1. d4 {[%emt 0:00:03]} d5 {[%emt 0:00:37]} 2. c4 {[%emt 0:00:08]} Nf6 {[%emt 0:
00:00]} 3. Nf3 {[%emt 0:00:22]} Bf5 {[%emt 0:06:30]} 4. g3 {[%emt 0:02:17]}
Nbd7 {[%emt 0:04:43]} 5. Bg2 {[%emt 0:00:15]} c6 {[%emt 0:01:51]} 6. b3 {
[%emt 0:03:01]} e6 {[%emt 0:04:01]} 7. O-O {[%emt 0:00:25]} Be7 {[%emt 0:00:30]
} 8. Nc3 {[%emt 0:03:22]} h6 {[%emt 0:00:39]} 9. Bb2 {[%emt 0:02:40]} O-O {
[%emt 0:01:02]} 10. Ne5 {[%emt 0:04:26]} Nxe5 {[%emt 0:01:16]} 11. dxe5 {
[%emt 0:00:06]} Nd7 {[%emt 0:00:19]} 12. e4 {[%emt 0:00:21]} dxe4 {[%emt 0:00:
00]} 13. Nxe4 {[%emt 0:00:10]} Qc7 {[%emt 0:00:19]} 14. f4 {[%emt 0:04:36]}
Rad8 {[%emt 0:00:49]} 15. Qe2 {[%emt 0:00:52]} Nc5 {[%emt 0:01:50]} 16. Rad1 {
[%emt 0:04:22]} Nxe4 {[%emt 0:02:52]} 17. Bxe4 {[%emt 0:00:13]} Qb6+ {[%emt 0:
00:00]} 18. Kg2 {[%emt 0:01:55]} Bxe4+ {[%emt 0:03:00]} 19. Qxe4 {[%emt 0:00:
00]} Qa6 {[%emt 0:00:46]} 20. Qc2 {[%emt 0:03:19]} b5 {[%emt 0:02:56]} 21. Bd4
{[%emt 0:05:27]} Qb7 {[%emt 0:04:23]} 22. Qe4 {[%emt 0:04:40]} Rd7 {[%emt 0:00:
00]} 23. Rf2 {[%emt 0:05:54]} Rfd8 {[%emt 0:01:24]} 24. Rfd2 {[%emt 0:00:20]}
Bb4 {[%emt 0:01:48]} 25. Rd3 {[%emt 0:01:55]} Qa6 {[%emt 0:03:26]} 26. Bf2 {
[%emt 0:09:44]} Rxd3 {[%emt 0:01:18]} 27. Rxd3 {[%emt 0:00:12]} Rxd3 {[%emt 0:
00:00]} 28. Qxd3 {[%emt 0:00:07]} Qxa2 {[%emt 0:00:21]} 29. Kf3 {[%emt 0:02:08]
} a5 {[%emt 0:02:26]} 30. Qd8+ {[%emt 0:07:25]} Kh7 {[%emt 0:00:10]} 31. Qd3+ {
[%emt 0:00:08]} g6 {[%emt 0:00:18]} 32. cxb5 {[%emt 0:04:02]} cxb5 {[%emt 0:00:
00]} 33. Qd7 {[%emt 0:08:18]} Qxb3+ {[%emt 0:00:22]} 34. Kg4 {[%emt 0:00:14]}
Kg7 {[%emt 0:00:25]} 35. Qd8 {[%emt 0:00:56]} Qd5 {[%emt 0:02:12]} 36. Qe8 {
[%emt 0:03:21]} Qd1+ {[%emt 0:00:35]} 37. Kh3 {[%emt 0:00:08]} Qf1+ {[%emt 0:
00:00]} 38. Kg4 {[%emt 0:00:25]} Qxf2 {[%emt 0:00:16]} 39. Qd8 {[%emt 0:00:05]}
Qxh2 {[%emt 0:02:53]} 40. Qf6+ {[%emt 0:00:07]} Kg8 {[%emt 0:00:17]} 41. Qd8+ {
[%emt 0:30:08]} Bf8 {[%emt 0:30:40]} 42. Qxa5 {[%emt 0:00:06]} Qe2+ {[%emt 0:
00:00]} 0-1

[Event "44th Chess Olympiad Open 2022"]
[Site "Chennai"]
[Date "2022.07.31"]
[Round "3.78"]
[White "Terubea, Ronald"]
[Black "Pesqueira, Jose"]
[Result "1-0"]
[WhiteElo "1742"]
[BlackElo "1809"]
[Annotator "NA RC"]
[PlyCount "125"]
[EventDate "2022.??.??"]
[TimeControl "60"]

1. e4 {[%emt 0:00:04]} b6 {[%emt 0:00:07]} 2. d4 {[%emt 0:01:16]} Bb7 {[%emt 0:
00:00]} 3. d5 {[%emt 0:00:25]} Na6 {[%emt 0:06:42]} 4. Bxa6 {[%emt 0:00:50]}
Bxa6 {[%emt 0:00:02]} 5. b3 {[%emt 0:01:30]} e6 {[%emt 0:01:13]} 6. Ne2 {
[%emt 0:05:03]} Qf6 {[%emt 0:08:38]} 7. c3 {[%emt 0:02:40]} Qg6 {[%emt 0:03:26]
} 8. O-O {[%emt 0:03:13]} Qxe4 {[%emt 0:01:15]} 9. Re1 {[%emt 0:00:02]} Nf6 {
[%emt 0:33:06]} 10. dxe6 {[%emt 0:06:03]} dxe6 {[%emt 0:11:37]} 11. Nf4 {
[%emt 0:04:27]} Qc6 {[%emt 0:02:01]} 12. Qc2 {[%emt 0:04:30]} Be7 {[%emt 0:00:
00]} 13. Ba3 {[%emt 0:02:08]} Bxa3 {[%emt 0:00:32]} 14. Nxa3 {[%emt 0:00:11]}
O-O-O {[%emt 0:04:21]} 15. c4 {[%emt 0:03:00]} Qd6 {[%emt 0:03:07]} 16. Qc1 {
[%emt 0:02:11]} g5 {[%emt 0:06:23]} 17. Ne2 {[%emt 0:03:06]} Ng4 {[%emt 0:00:
00]} 18. Ng3 {[%emt 0:00:43]} h6 {[%emt 0:05:24]} 19. Nb5 {[%emt 0:07:35]} Bxb5
{[%emt 0:00:32]} 20. cxb5 {[%emt 0:00:13]} Qd2 {[%emt 0:01:59]} 21. Re2 {
[%emt 0:02:52]} Qxc1+ {[%emt 0:00:08]} 22. Rxc1 {[%emt 0:00:09]} Nf6 {[%emt 0:
00:00]} 23. Rec2 {[%emt 0:01:41]} Rd7 {[%emt 0:00:09]} 24. f3 {[%emt 0:00:10]}
Rhd8 {[%emt 0:00:28]} 25. Nf1 {[%emt 0:02:05]} Nd5 {[%emt 0:01:01]} 26. g3 {
[%emt 0:01:32]} Nb4 {[%emt 0:00:49]} 27. Rc4 {[%emt 0:00:10]} Nd3 {[%emt 0:00:
00]} 28. R1c2 {[%emt 0:01:12]} Nc5 {[%emt 0:00:45]} 29. Kf2 {[%emt 0:00:50]} f5
{[%emt 0:00:30]} 30. Re2 {[%emt 0:03:31]} Rd6 {[%emt 0:00:34]} 31. Rec2 {
[%emt 0:00:38]} R8d7 {[%emt 0:00:09]} 32. Re2 {[%emt 0:00:46]} e5 {[%emt 0:00:
00]} 33. Kg2 {[%emt 0:02:35]} e4 {[%emt 0:01:08]} 34. fxe4 {[%emt 0:02:12]}
Nxe4 {[%emt 0:00:01]} 35. Ne3 {[%emt 0:01:03]} Rd2 {[%emt 0:01:03]} 36. Rc2 {
[%emt 0:00:48]} Rxe2+ {[%emt 0:00:20]} 37. Rxe2 {[%emt 0:00:42]} Rf7 {[%emt 0:
00:00]} 38. Nxf5 {[%emt 0:00:20]} Rxf5 {[%emt 0:00:16]} 39. Rxe4 {[%emt 0:00:
00]} Rxb5 {[%emt 0:00:08]} 40. Re8+ {[%emt 0:00:49]} Kb7 {[%emt 0:00:04]} 41.
Rh8 {[%emt 0:30:16]} Rd5 {[%emt 0:30:07]} 42. Rxh6 {[%emt 0:00:59]} Rd2+ {
[%emt 0:00:03]} 43. Kf3 {[%emt 0:00:10]} Rxa2 {[%emt 0:00:35]} 44. Kg4 {
[%emt 0:00:08]} Ra5 {[%emt 0:00:25]} 45. Rh5 {[%emt 0:00:15]} Rb5 {[%emt 0:00:
00]} 46. Rxg5 {[%emt 0:00:15]} Rxb3 {[%emt 0:00:27]} 47. h4 {[%emt 0:00:25]}
Rb4+ {[%emt 0:00:31]} 48. Kf5 {[%emt 0:00:21]} Rb1 {[%emt 0:00:00]} 49. h5 {
[%emt 0:00:00]} Rh1 {[%emt 0:00:00]} 50. Kg6 {[%emt 0:00:00]} a5 {[%emt 0:00:
00]} 51. h6 {[%emt 0:00:00]} a4 {[%emt 0:00:00]} 52. Rh5 {[%emt 0:00:00]} Rg1 {
[%emt 0:00:00]} 53. h7 {[%emt 0:00:00]} a3 {[%emt 0:00:00]} 54. h8=Q {[%emt 0:
00:00]} a2 {[%emt 0:00:00]} 55. Rh1 {[%emt 0:00:00]} a1=Q {[%emt 0:06:21]} 56.
Qxa1 {[%emt 0:00:00]} Rxa1 {[%emt 0:00:00]} 57. Rxa1 {[%emt 0:00:00]} c5 {
[%emt 0:00:00]} 58. Kf5 {[%emt 0:00:00]} b5 {[%emt 0:00:00]} 59. Ke4 {[%emt 0:
00:00]} Kb6 {[%emt 0:00:00]} 60. g4 {[%emt 0:00:00]} b4 {[%emt 0:00:00]} 61. g5
{[%emt 0:00:00]} b3 {[%emt 0:00:00]} 62. Kd3 {[%emt 0:00:00]} Kb5 {[%emt 0:00:
00]} 63. Ke4 {[%emt 0:00:00]} 1-0

[Event "44th Chess Olympiad Open 2022"]
[Site "Chennai"]
[Date "2022.07.31"]
[Round "3.78"]
[White "Jaiswal Prashant S"]
[Black "Van den Brink, Peter"]
[Result "1/2-1/2"]
[WhiteElo "1683"]
[BlackElo "2167"]
[Annotator "ChessBase"]
[PlyCount "82"]
[EventDate "2022.??.??"]
[TimeControl "60"]

1. d4 {[%emt 0:00:26]} d5 {[%emt 0:00:26]} 2. c4 {[%emt 0:00:09]} e6 {[%emt 0:
00:00]} 3. Nf3 {[%emt 0:01:16]} Be7 {[%emt 0:00:53]} 4. Nc3 {[%emt 0:00:11]}
Nf6 {[%emt 0:00:51]} 5. Bg5 {[%emt 0:00:52]} h6 {[%emt 0:00:31]} 6. Bh4 {
[%emt 0:02:07]} O-O {[%emt 0:02:26]} 7. e3 {[%emt 0:02:36]} b6 {[%emt 0:01:55]}
8. Bd3 {[%emt 0:00:21]} Bb7 {[%emt 0:00:43]} 9. O-O {[%emt 0:06:58]} Ne4 {
[%emt 0:03:21]} 10. Bxe7 {[%emt 0:02:19]} Qxe7 {[%emt 0:01:17]} 11. cxd5 {
[%emt 0:07:25]} Nxc3 {[%emt 0:00:21]} 12. bxc3 {[%emt 0:00:00]} exd5 {[%emt 0:
00:00]} 13. Bc2 {[%emt 0:00:00]} Nd7 {[%emt 0:05:30]} 14. Qd3 {[%emt 0:00:00]}
g6 {[%emt 0:14:44]} 15. h4 {[%emt 0:00:00]} h5 {[%emt 0:06:31]} 16. g3 {
[%emt 0:02:24]} a5 {[%emt 0:08:19]} 17. Rfe1 {[%emt 0:04:06]} Kg7 {[%emt 0:00:
00]} 18. a4 {[%emt 0:02:51]} Qd6 {[%emt 0:02:16]} 19. Reb1 {[%emt 0:07:36]}
Rfe8 {[%emt 0:00:34]} 20. Kg2 {[%emt 0:04:50]} Re7 {[%emt 0:00:20]} 21. Re1 {
[%emt 0:02:16]} Rae8 {[%emt 0:01:18]} 22. Rab1 {[%emt 0:02:08]} Re6 {[%emt 0:
00:00]} 23. Rbd1 {[%emt 0:02:46]} Qc6 {[%emt 0:04:23]} 24. Bb3 {[%emt 0:08:25]}
R6e7 {[%emt 0:00:57]} 25. Rc1 {[%emt 0:03:47]} Qd6 {[%emt 0:04:31]} 26. Bc2 {
[%emt 0:03:26]} Ra8 {[%emt 0:02:01]} 27. Qd2 {[%emt 0:02:49]} Rae8 {[%emt 0:00:
00]} 28. Qd3 {[%emt 0:00:37]} Re6 {[%emt 0:02:40]} 29. Rb1 {[%emt 0:02:05]} Re4
{[%emt 0:01:26]} 30. Ng5 {[%emt 0:01:09]} R4e7 {[%emt 0:00:21]} 31. Nf3 {
[%emt 0:00:14]} Kf6 {[%emt 0:02:42]} 32. Ng5 {[%emt 0:01:49]} Kg7 {[%emt 0:00:
00]} 33. Nf3 {[%emt 0:00:11]} Rd8 {[%emt 0:00:32]} 34. Rbd1 {[%emt 0:00:51]}
Rc8 {[%emt 0:00:51]} 35. Rb1 {[%emt 0:00:18]} Rb8 {[%emt 0:00:22]} 36. Rbd1 {
[%emt 0:00:21]} Rh8 {[%emt 0:00:15]} 37. Rb1 {[%emt 0:01:59]} Rg8 {[%emt 0:00:
00]} 38. Rbd1 {[%emt 0:01:40]} Rf8 {[%emt 0:00:23]} 39. Rb1 {[%emt 0:01:27]}
Rb8 {[%emt 0:00:13]} 40. Rbd1 {[%emt 0:00:41]} Rg8 {[%emt 0:00:10]} 41. Rb1 {
[%emt 0:30:41]} Rge8 {[%emt 0:33:28]} 1/2-1/2

[Event "44th Chess Olympiad Open 2022"]
[Site "Chennai"]
[Date "2022.07.31"]
[Round "3.78"]
[White "Stetsenko, Ilya"]
[Black "Prasad, Rudr"]
[Result "0-1"]
[WhiteElo "1683"]
[BlackElo "1566"]
[Annotator "NA RC"]
[PlyCount "134"]
[EventDate "2022.??.??"]
[TimeControl "60"]

1. d4 {[%emt 0:00:05]} d5 {[%emt 0:00:11]} 2. c4 {[%emt 0:00:09]} e6 {[%emt 0:
00:00]} 3. Nf3 {[%emt 0:00:16]} Nf6 {[%emt 0:00:13]} 4. Bg5 {[%emt 0:00:22]}
Nbd7 {[%emt 0:00:20]} 5. cxd5 {[%emt 0:01:18]} exd5 {[%emt 0:00:15]} 6. Nc3 {
[%emt 0:00:06]} c6 {[%emt 0:00:04]} 7. e3 {[%emt 0:00:09]} Be7 {[%emt 0:00:37]}
8. Bd3 {[%emt 0:00:20]} h6 {[%emt 0:01:44]} 9. Bf4 {[%emt 0:01:15]} Nh5 {
[%emt 0:01:57]} 10. Be5 {[%emt 0:07:22]} Nxe5 {[%emt 0:01:31]} 11. Nxe5 {
[%emt 0:00:02]} Nf6 {[%emt 0:00:37]} 12. O-O {[%emt 0:00:50]} O-O {[%emt 0:00:
00]} 13. Rb1 {[%emt 0:14:15]} c5 {[%emt 0:04:45]} 14. Be2 {[%emt 0:14:07]} Bf5
{[%emt 0:03:15]} 15. Rc1 {[%emt 0:01:16]} Rc8 {[%emt 0:04:04]} 16. dxc5 {
[%emt 0:01:13]} Bxc5 {[%emt 0:00:56]} 17. Nf3 {[%emt 0:00:47]} Re8 {[%emt 0:00:
00]} 18. Nd4 {[%emt 0:05:20]} Bh7 {[%emt 0:03:29]} 19. Bf3 {[%emt 0:00:45]} Ne4
{[%emt 0:03:26]} 20. Bg4 {[%emt 0:17:50]} Bxd4 {[%emt 0:10:08]} 21. Qxd4 {
[%emt 0:02:03]} Nxc3 {[%emt 0:04:31]} 22. Rxc3 {[%emt 0:00:20]} Rxc3 {[%emt 0:
00:00]} 23. Qxc3 {[%emt 0:00:49]} Qg5 {[%emt 0:05:04]} 24. Bh3 {[%emt 0:08:44]}
Be4 {[%emt 0:06:41]} 25. g3 {[%emt 0:01:26]} h5 {[%emt 0:04:09]} 26. Qc7 {
[%emt 0:04:43]} Qf6 {[%emt 0:03:18]} 27. Bg2 {[%emt 0:07:50]} Qxb2 {[%emt 0:00:
00]} 28. Qd7 {[%emt 0:02:16]} Re6 {[%emt 0:02:56]} 29. Qd8+ {[%emt 0:01:42]}
Kh7 {[%emt 0:00:37]} 30. Bxe4+ {[%emt 0:03:03]} dxe4 {[%emt 0:00:50]} 31. Qd5 {
[%emt 0:02:00]} g6 {[%emt 0:00:34]} 32. f3 {[%emt 0:01:53]} exf3 {[%emt 0:00:
00]} 33. Rxf3 {[%emt 0:00:19]} Kg7 {[%emt 0:01:16]} 34. Qd7 {[%emt 0:01:35]}
Rf6 {[%emt 0:02:40]} 35. Rxf6 {[%emt 0:00:20]} Qxf6 {[%emt 0:00:36]} 36. Qa4 {
[%emt 0:01:04]} Qb6 {[%emt 0:00:47]} 37. Kf2 {[%emt 0:00:20]} Qf6+ {[%emt 0:00:
00]} 38. Ke2 {[%emt 0:00:18]} a6 {[%emt 0:00:35]} 39. Qb3 {[%emt 0:00:51]} b5 {
[%emt 0:03:33]} 40. Qa3 {[%emt 0:00:08]} Qc6 {[%emt 0:00:59]} 41. Qb2+ {
[%emt 0:30:36]} Kh7 {[%emt 0:30:17]} 42. Qb3 {[%emt 0:00:00]} Qb7 {[%emt 0:00:
00]} 43. Kf2 {[%emt 0:00:00]} Qd7 {[%emt 0:00:00]} 44. Ke2 {[%emt 0:00:00]} Kh6
{[%emt 0:00:00]} 45. Qa3 {[%emt 0:00:00]} Qe6 {[%emt 0:00:00]} 46. Qb2 {
[%emt 0:00:00]} Qc4+ {[%emt 0:00:00]} 47. Kf2 {[%emt 0:00:00]} Kh7 {[%emt 0:00:
00]} 48. Qa3 {[%emt 0:00:00]} b4 {[%emt 0:00:00]} 49. Qa4 {[%emt 0:00:00]} Qe6
{[%emt 0:00:00]} 50. h4 {[%emt 0:00:00]} Kg7 {[%emt 0:00:00]} 51. Kf3 {[%emt 0:
00:00]} Qf5+ {[%emt 0:00:00]} 52. Kg2 {[%emt 0:00:58]} a5 {[%emt 0:00:00]} 53.
Qb3 {[%emt 0:02:31]} Qb5 {[%emt 0:00:00]} 54. Qb2+ {[%emt 0:00:28]} Kg8 {
[%emt 0:00:05]} 55. Qd2 {[%emt 0:01:00]} a4 {[%emt 0:00:28]} 56. Qd8+ {[%emt 0:
00:00]} Kh7 {[%emt 0:00:07]} 57. Kf2 {[%emt 0:00:52]} Qf5+ {[%emt 0:00:19]} 58.
Ke2 {[%emt 0:00:29]} Qc2+ {[%emt 0:00:19]} 59. Qd2 {[%emt 0:00:07]} Qxd2+ {
[%emt 0:00:10]} 60. Kxd2 {[%emt 0:00:02]} Kg7 {[%emt 0:00:53]} 61. Kd3 {
[%emt 0:00:18]} Kf6 {[%emt 0:00:24]} 62. Kc4 {[%emt 0:00:01]} b3 {[%emt 0:00:
00]} 63. axb3 {[%emt 0:00:01]} axb3 {[%emt 0:00:07]} 64. Kxb3 {[%emt 0:00:01]}
Ke5 {[%emt 0:00:08]} 65. Kc4 {[%emt 0:00:38]} Ke4 {[%emt 0:00:16]} 66. Kc5 {
[%emt 0:00:20]} Kxe3 {[%emt 0:00:04]} 67. Kd5 {[%emt 0:00:03]} Kf3 {[%emt 0:00:
00]} 0-1

[Event "44th Chess Olympiad Open 2022"]
[Site "Chennai"]
[Date "2022.07.31"]
[Round "3.79"]
[White "Martyr, Reginald"]
[Black "Shaw, Clifford"]
[Result "1-0"]
[WhiteElo "2194"]
[BlackElo "1615"]
[Annotator "RC"]
[PlyCount "27"]
[EventDate "2022.??.??"]
[TimeControl "60"]

1. Nf3 {[%emt 0:00:20]} f5 {[%emt 0:00:02]} 2. d3 {[%emt 0:00:19]} Nf6 {
[%emt 0:00:08]} 3. e4 {[%emt 0:01:16]} d6 {[%emt 0:01:41]} 4. e5 {[%emt 0:00:
00]} dxe5 {[%emt 0:00:03]} 5. Nxe5 {[%emt 0:00:09]} Nc6 {[%emt 0:00:14]} 6.
Nxc6 {[%emt 0:00:32]} bxc6 {[%emt 0:00:02]} 7. d4 {[%emt 0:00:42]} e5 {[%emt 0:
00:00]} 8. Qf3 {[%emt 0:09:36]} e4 {[%emt 0:00:43]} 9. Qc3 {[%emt 0:00:13]} Rb8
{[%emt 0:05:31]} 10. Qxc6+ {[%emt 0:01:11]} Bd7 {[%emt 0:00:15]} 11. Qa6 {
[%emt 0:00:46]} c5 {[%emt 0:04:02]} 12. d5 {[%emt 0:20:11]} Nxd5 {[%emt 0:00:
00]} 13. Be2 {[%emt 0:00:45]} Nb4 {[%emt 0:16:44]} 14. Bh5+ {[%emt 0:01:43]}
1-0

[Event "44th Chess Olympiad Open 2022"]
[Site "Chennai"]
[Date "2022.07.31"]
[Round "3.79"]
[White "Young, Christopher"]
[Black "Sixtus Gabriel"]
[Result "1-0"]
[WhiteElo "1990"]
[BlackElo "1787"]
[Annotator "NA"]
[PlyCount "95"]
[EventDate "2022.??.??"]
[TimeControl "60"]

1. d4 {[%emt 0:00:04]} g6 {[%emt 0:00:12]} 2. c4 {[%emt 0:00:04]} d6 {[%emt 0:
00:00]} 3. Nc3 {[%emt 0:00:04]} Nf6 {[%emt 0:00:07]} 4. e4 {[%emt 0:00:09]} Bg7
{[%emt 0:00:05]} 5. f4 {[%emt 0:00:22]} O-O {[%emt 0:00:56]} 6. Nf3 {[%emt 0:
00:00]} Bg4 {[%emt 0:00:51]} 7. Be2 {[%emt 0:00:39]} Na6 {[%emt 0:00:51]} 8.
O-O {[%emt 0:00:59]} c5 {[%emt 0:00:23]} 9. d5 {[%emt 0:06:04]} Nc7 {[%emt 0:
00:00]} 10. Be3 {[%emt 0:06:47]} a6 {[%emt 0:03:37]} 11. a4 {[%emt 0:06:22]}
Rb8 {[%emt 0:01:59]} 12. Qc2 {[%emt 0:20:21]} Bxf3 {[%emt 0:05:17]} 13. Rxf3 {
[%emt 0:01:01]} Ng4 {[%emt 0:00:41]} 14. Kh1 {[%emt 0:03:04]} Nxe3 {[%emt 0:00:
00]} 15. Rxe3 {[%emt 0:01:01]} Bh6 {[%emt 0:04:45]} 16. Rf1 {[%emt 0:04:32]} e5
{[%emt 0:04:36]} 17. g3 {[%emt 0:10:16]} exf4 {[%emt 0:01:37]} 18. gxf4 {
[%emt 0:00:06]} Qh4 {[%emt 0:04:34]} 19. Ref3 {[%emt 0:00:36]} Rbe8 {[%emt 0:
00:00]} 20. Bd3 {[%emt 0:03:50]} Re7 {[%emt 0:04:57]} 21. Qg2 {[%emt 0:02:45]}
Bg7 {[%emt 0:01:55]} 22. Rh3 {[%emt 0:02:31]} Qf6 {[%emt 0:01:05]} 23. e5 {
[%emt 0:02:02]} dxe5 {[%emt 0:01:43]} 24. Ne4 {[%emt 0:00:15]} Qb6 {[%emt 0:00:
00]} 25. d6 {[%emt 0:00:22]} Rd7 {[%emt 0:00:51]} 26. dxc7 {[%emt 0:00:40]}
Qxc7 {[%emt 0:01:11]} 27. f5 {[%emt 0:00:51]} Rfd8 {[%emt 0:00:54]} 28. Bc2 {
[%emt 0:04:59]} Rd4 {[%emt 0:01:02]} 29. f6 {[%emt 0:03:42]} Bf8 {[%emt 0:00:
00]} 30. Rxh7 {[%emt 0:03:06]} Kxh7 {[%emt 0:04:25]} 31. Qh3+ {[%emt 0:02:59]}
Kg8 {[%emt 0:00:25]} 32. Ng5 {[%emt 0:00:25]} Qc6+ {[%emt 0:00:32]} 33. Rf3 {
[%emt 0:06:52]} Rd1+ {[%emt 0:02:20]} 34. Bxd1 {[%emt 0:00:24]} Rxd1+ {[%emt 0:
00:00]} 35. Kg2 {[%emt 0:00:40]} Rd2+ {[%emt 0:01:13]} 36. Kf1 {[%emt 0:04:49]}
Qxf3+ {[%emt 0:03:45]} 37. Qxf3 {[%emt 0:00:53]} Bh6 {[%emt 0:00:23]} 38. h4 {
[%emt 0:01:19]} Rd4 {[%emt 0:00:19]} 39. Qxb7 {[%emt 0:00:25]} Rf4+ {[%emt 0:
00:00]} 40. Ke2 {[%emt 0:00:26]} Rxf6 {[%emt 0:00:08]} 41. Qb8+ {[%emt 0:31:47]
} Bf8 {[%emt 0:30:32]} 42. Qxe5 {[%emt 0:00:46]} Rf5 {[%emt 0:00:19]} 43. Qc7 {
[%emt 0:02:06]} Bg7 {[%emt 0:00:59]} 44. Qc8+ {[%emt 0:00:00]} Bf8 {[%emt 0:00:
00]} 45. Qxa6 {[%emt 0:00:00]} Be7 {[%emt 0:00:00]} 46. Qb6 {[%emt 0:00:00]}
Bxg5 {[%emt 0:00:00]} 47. hxg5 {[%emt 0:00:00]} Rxg5 {[%emt 0:00:00]} 48. Qd8+
{[%emt 0:00:00]} 1-0

[Event "44th Chess Olympiad Open 2022"]
[Site "Chennai"]
[Date "2022.07.31"]
[Round "3.79"]
[White "Mathurin, Nathaniel"]
[Black "Tracey, Shaun M"]
[Result "1-0"]
[WhiteElo "1722"]
[BlackElo "1650"]
[Annotator "NA"]
[PlyCount "125"]
[EventDate "2022.??.??"]
[TimeControl "60"]

1. Nf3 {[%emt 0:00:03]} f5 {[%emt 0:00:55]} 2. b3 {[%emt 0:01:35]} Nf6 {
[%emt 0:00:48]} 3. Bb2 {[%emt 0:00:53]} e6 {[%emt 0:01:16]} 4. c4 {[%emt 0:00:
00]} c6 {[%emt 0:03:32]} 5. g3 {[%emt 0:01:04]} d5 {[%emt 0:02:24]} 6. Bg2 {
[%emt 0:00:03]} Bd6 {[%emt 0:00:31]} 7. O-O {[%emt 0:01:11]} O-O {[%emt 0:00:
00]} 8. d3 {[%emt 0:01:20]} Nbd7 {[%emt 0:06:13]} 9. Nd4 {[%emt 0:09:47]} Qe7 {
[%emt 0:05:35]} 10. Nc3 {[%emt 0:04:35]} a6 {[%emt 0:02:36]} 11. Nc2 {[%emt 0:
00:00]} f4 {[%emt 0:06:54]} 12. d4 {[%emt 0:01:26]} b5 {[%emt 0:08:00]} 13. e4
{[%emt 0:04:54]} fxe3 {[%emt 0:03:24]} 14. Nxe3 {[%emt 0:02:27]} Rb8 {[%emt 0:
00:00]} 15. Re1 {[%emt 0:01:00]} Qf7 {[%emt 0:01:16]} 16. Bh3 {[%emt 0:00:27]}
e5 {[%emt 0:10:34]} 17. Nf5 {[%emt 0:00:34]} Bc7 {[%emt 0:04:55]} 18. cxd5 {
[%emt 0:06:04]} cxd5 {[%emt 0:02:23]} 19. dxe5 {[%emt 0:02:15]} Nxe5 {[%emt 0:
00:00]} 20. Nxb5 {[%emt 0:00:39]} Rxb5 {[%emt 0:02:55]} 21. Bxe5 {[%emt 0:00:
00]} Bb6 {[%emt 0:03:45]} 22. Bd4 {[%emt 0:03:09]} Bxd4 {[%emt 0:01:11]} 23.
Qxd4 {[%emt 0:00:14]} Ne4 {[%emt 0:00:25]} 24. Rxe4 {[%emt 0:00:46]} dxe4 {
[%emt 0:02:32]} 25. g4 {[%emt 0:08:25]} h5 {[%emt 0:01:07]} 26. Qxe4 {[%emt 0:
00:00]} Bxf5 {[%emt 0:02:19]} 27. gxf5 {[%emt 0:00:05]} Qf6 {[%emt 0:01:04]}
28. Re1 {[%emt 0:00:11]} Rb6 {[%emt 0:01:17]} 29. Qf3 {[%emt 0:02:59]} Qh4 {
[%emt 0:00:47]} 30. Re4 {[%emt 0:01:09]} Qg5+ {[%emt 0:00:16]} 31. Qg3 {
[%emt 0:00:01]} Qxg3+ {[%emt 0:00:41]} 32. hxg3 {[%emt 0:00:02]} Rd8 {[%emt 0:
00:00]} 33. Bf1 {[%emt 0:02:04]} Rd1 {[%emt 0:00:37]} 34. Kg2 {[%emt 0:00:02]}
Kf7 {[%emt 0:00:29]} 35. Be2 {[%emt 0:00:40]} Rd2 {[%emt 0:00:20]} 36. Bxh5+ {
[%emt 0:02:04]} Kf6 {[%emt 0:00:04]} 37. Ra4 {[%emt 0:00:03]} Kxf5 {[%emt 0:00:
00]} 38. Kf1 {[%emt 0:00:55]} Kg5 {[%emt 0:01:08]} 39. Be2 {[%emt 0:00:12]}
Rdd6 {[%emt 0:00:21]} 40. Ra5+ {[%emt 0:00:16]} Kf6 {[%emt 0:00:17]} 41. Bc4 {
[%emt 0:08:57]} Rb8 {[%emt 0:06:44]} 42. a4 {[%emt 0:00:00]} Rbb6 {[%emt 0:00:
00]} 43. Ke2 {[%emt 0:00:00]} Ke7 {[%emt 0:01:05]} 44. f4 {[%emt 0:00:00]} Kd7
{[%emt 0:02:39]} 45. Rg5 {[%emt 0:00:00]} Rg6 {[%emt 0:00:53]} 46. Rxg6 {
[%emt 0:00:00]} Rxg6 {[%emt 0:00:02]} 47. Kf3 {[%emt 0:00:00]} a5 {[%emt 0:00:
00]} 48. g4 {[%emt 0:00:00]} Kd6 {[%emt 0:00:49]} 49. g5 {[%emt 0:00:00]} Kc5 {
[%emt 0:01:11]} 50. Ke4 {[%emt 0:00:00]} Rd6 {[%emt 0:03:16]} 51. Ke5 {[%emt 0:
00:00]} Kc6 {[%emt 0:04:34]} 52. f5 {[%emt 0:00:00]} Kd7 {[%emt 0:02:34]} 53.
Be6+ {[%emt 0:00:00]} Kc7 {[%emt 0:00:59]} 54. f6 {[%emt 0:00:00]} gxf6+ {
[%emt 0:02:40]} 55. Kxf6 {[%emt 0:00:00]} Rd1 {[%emt 0:01:18]} 56. g6 {[%emt 0:
00:00]} Rg1 {[%emt 0:03:45]} 57. g7 {[%emt 0:00:00]} Kd6 {[%emt 0:00:19]} 58.
g8=Q {[%emt 0:00:00]} Rxg8 {[%emt 0:00:04]} 59. Bxg8 {[%emt 0:00:00]} Kc6 {
[%emt 0:00:13]} 60. Ke5 {[%emt 0:00:00]} Kc5 {[%emt 0:00:08]} 61. Bc4 {[%emt 0:
00:00]} Kc6 {[%emt 0:00:33]} 62. Kd4 {[%emt 0:00:00]} Kb6 {[%emt 0:00:53]} 63.
Bd5 {[%emt 0:00:00]} 1-0

[Event "44th Chess Olympiad Open 2022"]
[Site "Chennai"]
[Date "2022.07.31"]
[Round "3.80"]
[White "Tchouka, Yakini"]
[Black "Bansal, Nayan"]
[Result "1-0"]
[WhiteElo "1934"]
[BlackElo "1444"]
[Annotator "NA RC"]
[PlyCount "25"]
[EventDate "2022.??.??"]
[TimeControl "60"]

1. e4 {[%emt 0:00:04]} e5 {[%emt 0:00:15]} 2. Nf3 {[%emt 0:00:09]} Nc6 {
[%emt 0:00:23]} 3. Bc4 {[%emt 0:00:34]} Bc5 {[%emt 0:00:33]} 4. d3 {[%emt 0:00:
00]} h6 {[%emt 0:03:32]} 5. c3 {[%emt 0:00:40]} a6 {[%emt 0:09:31]} 6. d4 {
[%emt 0:03:17]} exd4 {[%emt 0:02:07]} 7. cxd4 {[%emt 0:00:10]} Ba7 {[%emt 0:00:
00]} 8. d5 {[%emt 0:06:12]} Na5 {[%emt 0:04:38]} 9. Bd3 {[%emt 0:03:52]} Ne7 {
[%emt 0:05:54]} 10. b4 {[%emt 0:01:07]} Nxd5 {[%emt 0:04:53]} 11. exd5 {
[%emt 0:01:00]} Qf6 {[%emt 0:00:36]} 12. Qe2+ {[%emt 0:00:15]} Kf8 {[%emt 0:00:
00]} 13. Bb2 {[%emt 0:00:22]} 1-0